fUST/lending_fUST_20250810
["ID","MTS","AMOUNT","RATE_DAILY","PERIOD"]
[378166635,1754758245206,-460.0,0.00024564,2]
[378166636,1754758245215,-559.57,0.00024564,2]
[378166637,1754758245224,-186.24915208,0.00024564,2]
[378166638,1754758245233,-460.0,0.00024565,2]
[378166639,1754758245244,-460.0,0.00024565,2]
[378166640,1754758245255,-460.0,0.00024565,2]
[378166641,1754758245264,-460.0,0.00024565,2]
[378166642,1754758245273,-460.0,0.00024565,2]
[378166643,1754758245282,-1015.54,0.00024565,2]
[378166644,1754758245292,-706.55,0.00024565,2]
[378166645,1754758245301,-881.26,0.00024565,2]
[378166646,1754758245310,-460.0,0.00024565,2]
[378166647,1754758245319,-1886.54,0.00024594,2]
[378166648,1754758245328,-460.0,0.00024594,2]
[378166649,1754758245338,-620.42,0.00024594,2]
[378166650,1754758245347,-10781.06533134,0.00024634,2]
[378166651,1754758245356,-496.0,0.00024658,2]
[378166652,1754758245364,-319.0,0.00024669,2]
[378166653,1754758245374,-319.0,0.00024674,7]
[378166654,1754758245383,-151.0,0.000247,6]
[378166655,1754758245393,-179.13042368,0.000247,7]
[378166656,1754758245402,-498.707,0.000247,7]
[378166657,1754758245411,-360.0,0.00024732,2]
[378166658,1754758245421,-179.92802879,0.00024771,2]
[378166659,1754758245430,-699.28646898,0.000248,2]
[378166660,1754758245439,-504.58546499,0.00024821,2]
[378166661,1754758245448,-1000.0,0.00024821,2]
[378166662,1754758245457,-465.01,0.00024836,2]
[378166663,1754758245467,-1737.07,0.00024837,4]
[378166664,1754758245477,-460.0,0.00024837,2]
[378166665,1754758245487,-765.25,0.00024837,2]
[378166666,1754758245496,-925.5,0.00024837,2]
[378166667,1754758245506,-913.38,0.00024837,2]
[378166668,1754758245515,-460.0,0.00024837,2]
[378166669,1754758245524,-460.0,0.00024837,2]
[378166670,1754758245533,-460.0,0.00024838,2]
[378166671,1754758245543,-548.52,0.00024838,2]
[378166672,1754758245552,-829.17,0.00024838,2]
[378166673,1754758245562,-460.0,0.00024838,2]
[378166674,1754758245571,-460.0,0.00024838,2]
[378166675,1754758245581,-669.58,0.00024838,2]
[378166676,1754758245590,-460.0,0.00024838,2]
[378166677,1754758245600,-559.57,0.00024838,2]
[378166678,1754758245610,-460.0,0.00024839,2]
[378166679,1754758245619,-460.0,0.00024839,2]
[378166680,1754758245628,-460.0,0.00024839,2]
[378166681,1754758245638,-460.0,0.00024839,2]
[378166682,1754758245648,-460.0,0.00024839,2]
[378166683,1754758245657,-1015.54,0.00024839,2]
[378166684,1754758245667,-706.55,0.00024839,2]
[378166685,1754758245676,-881.26,0.00024839,2]
[378166686,1754758245685,-460.0,0.00024839,2]
[378166687,1754758245695,-673.7456923,0.00024841,2]
[378166688,1754758245706,-2694.98276921,0.00024841,2]
[378166689,1754758245716,-6057.64751949,0.00024841,2]
[378166690,1754758245725,-651.75001232,0.00024841,2]
[378166691,1754758245735,-2604.39304923,0.00024841,2]
[378166692,1754758245744,-1886.54,0.00024868,2]
[378166693,1754758245753,-460.0,0.00024868,2]
[378166694,1754758245762,-620.42,0.00024868,2]
[378166695,1754758245771,-319.0,0.00024869,2]
[378166696,1754758245781,-500.0,0.00024873,2]
[378166697,1754758245791,-151.0,0.000249,7]
[378166698,1754758245800,-151.0,0.000249,7]
[378166699,1754758245809,-151.0,0.000249,7]
[378166700,1754758245819,-183.321116,0.000249,7]
[378166701,1754758245829,-183.321116,0.000249,7]
[378166702,1754758245839,-151.0,0.000249,7]
[378166703,1754758245849,-151.0,0.000249,7]
[378166704,1754758245858,-355.426841,0.000249,7]
[378166705,1754758245869,-355.426841,0.000249,7]
[378166706,1754758245878,-237.7654,0.000249,7]
[378166707,1754758245888,-636.0,0.000249,2]
[378166708,1754758245897,-2150.0,0.000249,2]
[378166709,1754758245908,-971.0,0.000249,2]
[378166710,1754758245918,-261626.64197082,0.000249,2]
[378166711,1754758246041,-1164.79,0.00024563,2]
[378166712,1754758246051,-1164.79,0.00024837,2]
[378166713,1754758246060,-14233.163984,0.000249,2]
[378166732,1754758246235,-460.0,0.00021549,2]
[378166734,1754758246245,-460.0,0.00024015,2]
[378166736,1754758246254,-460.0,0.00024289,2]
[378166738,1754758246263,-460.0,0.00024563,2]
[378166740,1754758246273,-229.1614872,0.00024837,2]
[378166742,1754758246282,-31760.74574144,0.000249,2]
[378166770,1754758279389,7077.25028699,0.000199,2]
[378166771,1754758283176,150.0,0.00023625,30]
[378166772,1754758283606,150.0,0.00024751,30]
[378166773,1754758284014,152.68,0.00025876,30]
[378166774,1754758284429,203.57,0.00027001,30]
[378166780,1754758348282,250.34346604,0.00029041,120]
[378166781,1754758348905,163.81959451,0.00021448,2]
[378166782,1754758364505,150.0,0.00023846,30]
[378166783,1754758364929,150.0,0.00024982,30]
[378166784,1754758365350,150.0,0.00026117,30]
[378166785,1754758365750,196.51,0.00027253,30]
[378166786,1754758447817,150.0,0.00023867,30]
[378166787,1754758448252,150.0,0.00025003,30]
[378166788,1754758448772,150.0,0.0002614,30]
[378166789,1754758449230,189.62,0.00027276,30]
[378166790,1754758478792,5271.24998749,0.000199,2]
[378166791,1754758478817,1832.06962772,0.000199,2]
[378166792,1754758528538,150.0,0.00023245,30]
[378166793,1754758529137,150.0,0.00024352,30]
[378166794,1754758529381,150.0,0.00025459,30]
[378166795,1754758529794,178.94,0.00026566,30]
[378166796,1754758530235,223.68,0.00027673,30]
[378166797,1754758535570,18167.93037228,0.00020627,2]
[378166798,1754758535595,6732.06962772,0.00020627,2]
[378166801,1754758609925,432.990999,0.00013699,2]
[378166802,1754758610136,432.990999,0.00020187,2]
[378166803,1754758613227,150.0,0.00023308,30]
[378166804,1754758613658,150.0,0.00024418,30]
[378166805,1754758614089,150.0,0.00025528,30]
[378166806,1754758614503,160.34,0.00026637,30]
[378166807,1754758614917,200.42,0.00027747,30]
[378166809,1754758663268,6892.8580092,0.000199,2]
[378166810,1754758700207,150.0,0.00023316,30]
[378166811,1754758700625,150.0,0.00024426,30]
[378166812,1754758701032,150.0,0.00025536,30]
[378166813,1754758701483,150.0,0.00026647,30]
[378166814,1754758701877,178.31,0.00027757,30]
[378166815,1754758773837,163.81959449,0.00021447,2]
[378166816,1754758774257,163.81959449,0.00021448,2]
[378166817,1754758774721,163.81959449,0.00021448,2]
[378166818,1754758779212,150.0,0.00023314,30]
[378166819,1754758779623,150.0,0.00024424,30]
[378166820,1754758780036,150.0,0.00025534,30]
[378166821,1754758780486,150.0,0.00026644,30]
[378166822,1754758780911,157.08,0.00027755,30]
[378166823,1754758847629,5017.63158161,0.000199,2]
[378166824,1754758847655,1645.46449395,0.000199,2]
[378166825,1754758857431,150.0,0.00023483,30]
[378166826,1754758857836,150.0,0.00024601,30]
[378166827,1754758858727,150.0,0.00025719,30]
[378166828,1754758859129,150.0,0.00026837,30]
[378166829,1754758859532,150.0,0.00027955,30]
[378166832,1754758936371,150.0,0.00022941,30]
[378166833,1754758937716,150.0,0.00024033,30]
[378166834,1754758938175,150.0,0.00025126,30]
[378166835,1754758938574,150.0,0.00026218,30]
[378166836,1754758939012,169.18,0.0002731,30]
[378166837,1754758961855,206.305738,0.00020548,2]
[378166839,1754759009821,466.78,0.00021512,2]
[378166840,1754759017305,150.0,0.00023012,30]
[378166841,1754759017720,150.0,0.00024108,30]
[378166842,1754759018102,150.0,0.00025204,30]
[378166843,1754759018524,150.0,0.000263,30]
[378166844,1754759018943,156.9,0.00027395,30]
[378166845,1754759030843,162.67383088,0.0002,3]
[378166846,1754759037954,6440.99287279,0.000199,2]
[378166847,1754759093555,150.0,0.00023019,30]
[378166848,1754759093971,150.0,0.00024115,30]
[378166849,1754759094368,150.0,0.00025211,30]
[378166850,1754759094775,150.0,0.00026308,30]
[378166851,1754759095177,150.0,0.00027404,30]
[378166853,1754759163960,281.33073495,0.00021512,2]
[378166854,1754759170556,150.0,0.00023006,30]
[378166855,1754759170963,150.0,0.00024101,30]
[378166856,1754759171398,150.0,0.00025197,30]
[378166857,1754759171785,150.0,0.00026292,30]
[378166858,1754759172178,150.0,0.00027388,30]
[378166859,1754759220902,336.08609489,0.00021447,2]
[378166860,1754759224141,6226.29311047,0.000199,2]
[378166862,1754759247283,2073.96952212,0.00021449,2]
[378166863,1754759249240,150.0,0.00022991,30]
[378166864,1754759249653,150.0,0.00024086,30]
[378166865,1754759250066,150.0,0.00025181,30]
[378166866,1754759250465,150.0,0.00026275,30]
[378166867,1754759251350,150.0,0.0002737,30]
[378166877,1754759327530,150.0,0.00023516,30]
[378166878,1754759328405,150.0,0.00024636,30]
[378166879,1754759328819,150.0,0.00025756,30]
[378166880,1754759330938,150.0,0.00026876,30]
[378166881,1754759331391,150.0,0.00027995,30]
[378166891,1754759405346,150.0,0.00023042,30]
[378166892,1754759405726,150.0,0.00024139,30]
[378166893,1754759406968,150.0,0.00025237,30]
[378166894,1754759407382,150.0,0.00026334,30]
[378166895,1754759407771,150.0,0.00027431,30]
[378166896,1754759413727,2160.10360195,0.000199,2]
[378166897,1754759413753,3998.10970455,0.000199,2]
[378166932,1754759432592,-309.61770391,0.00021518,2]
[378166934,1754759432602,-1200.0,0.00021538,2]
[378166936,1754759432612,-284.85,0.00021538,10]
[378166938,1754759432623,-237.37,0.00021538,10]
[378166940,1754759432633,-197.81,0.00021538,10]
[378166942,1754759432642,-164.84,0.00021538,10]
[378166944,1754759432652,-274.79,0.00021539,3]
[378166946,1754759432662,-1200.0,0.00021539,2]
[378166948,1754759432672,-300.0,0.00021539,2]
[378166950,1754759432681,-1099.14,0.0002154,3]
[378166952,1754759432690,-549.57,0.0002154,3]
[378166954,1754759432700,-824.38,0.0002154,3]
[378166956,1754759432709,-460.0,0.00021546,2]
[378166958,1754759432718,-1819.62,0.00021546,2]
[378166960,1754759432728,-460.0,0.00021546,2]
[378166962,1754759432737,-460.0,0.00021546,2]
[378166963,1754759432747,-460.0,0.00021546,2]
[378166964,1754759432756,-1097.66,0.00021546,2]
[378166965,1754759432766,-460.0,0.00021546,2]
[378166967,1754759432775,-460.0,0.00021546,2]
[378166968,1754759432786,-460.0,0.00021546,2]
[378166970,1754759432795,-460.0,0.00021546,2]
[378166972,1754759432805,-460.0,0.00021546,2]
[378166973,1754759432814,-738.0,0.00021546,2]
[378166974,1754759432824,-460.0,0.00021546,2]
[378166976,1754759432844,-1182.7,0.00021546,2]
[378166978,1754759432856,-460.0,0.00021546,2]
[378166980,1754759432865,-460.0,0.00021546,2]
[378166982,1754759432875,-460.0,0.00021546,2]
[378166984,1754759432885,-460.0,0.00021546,2]
[378166986,1754759432895,-460.0,0.00021546,2]
[378166988,1754759432905,-460.0,0.00021546,2]
[378166990,1754759432916,-395.91420319,0.00021546,2]
[378166992,1754759432926,-460.0,0.00021546,2]
[378166994,1754759432938,-460.0,0.00021546,2]
[378166996,1754759432948,-460.0,0.00021546,2]
[378166998,1754759432957,-460.0,0.00021546,2]
[378167000,1754759432967,-460.0,0.00021546,2]
[378167002,1754759432977,-460.0,0.00021546,2]
[378167004,1754759432989,-460.0,0.00021546,2]
[378167007,1754759432998,-460.0,0.00021546,2]
[378167009,1754759433008,-162.51959931,0.00021546,2]
[378167011,1754759433017,-69.21849359,0.00021547,2]
[378167013,1754759433031,-390.78150641,0.00021547,2]
[378167015,1754759433041,-460.0,0.00021547,2]
[378167017,1754759433051,-460.0,0.00021547,2]
[378167019,1754759433061,-460.0,0.00021547,2]
[378167021,1754759433071,-347.37202429,0.00021547,2]
[378167023,1754759433083,-114.53914948,0.00021547,2]
[378167025,1754759433093,-168.00340122,0.00021547,2]
[378167190,1754759439165,-377.1725896,0.00021546,2]
[378167191,1754759439179,-82.8274104,0.00021546,2]
[378167192,1754759439189,-291.99659878,0.00021547,2]
[378167193,1754759439198,-460.0,0.00021547,2]
[378167194,1754759439208,-460.0,0.00021547,2]
[378167195,1754759439218,-596.65951002,0.00021547,2]
[378167196,1754759439227,-460.0,0.00021547,2]
[378167197,1754759439236,-460.0,0.00021547,2]
[378167198,1754759439246,-460.0,0.00021547,2]
[378167199,1754759439255,-460.0,0.00021547,2]
[378167200,1754759439265,-460.0,0.00021547,2]
[378167201,1754759439275,-460.0,0.00021547,2]
[378167202,1754759439284,-460.0,0.00021547,2]
[378167203,1754759439294,-460.0,0.00021547,2]
[378167204,1754759439303,-460.0,0.00021547,2]
[378167205,1754759439313,-460.0,0.00021547,2]
[378167206,1754759439323,-542.88445701,0.00021547,2]
[378167207,1754759439333,-460.0,0.00021547,2]
[378167208,1754759439342,-460.0,0.00021547,2]
[378167209,1754759439352,-460.0,0.00021547,2]
[378167210,1754759439361,-460.0,0.00021547,2]
[378167211,1754759439371,-460.0,0.00021547,2]
[378167212,1754759439380,-460.0,0.00021547,2]
[378167213,1754759439389,-460.0,0.00021547,2]
[378167214,1754759439401,-460.0,0.00021547,2]
[378167215,1754759439410,-460.0,0.00021547,2]
[378167216,1754759439420,-460.0,0.00021547,2]
[378167217,1754759439430,-460.0,0.00021547,2]
[378167218,1754759439439,-460.0,0.00021547,2]
[378167219,1754759439448,-460.0,0.00021547,2]
[378167220,1754759439458,-268.55931038,0.00021547,2]
[378167221,1754759439468,-460.0,0.00021547,2]
[378167222,1754759439478,-460.0,0.00021547,2]
[378167223,1754759439487,-460.0,0.00021547,2]
[378167224,1754759439497,-460.0,0.00021547,2]
[378167225,1754759439507,-460.0,0.00021547,2]
[378167226,1754759439518,-464.32751877,0.00021547,2]
[378167227,1754759439535,-460.0,0.00021547,2]
[378167228,1754759439549,-460.0,0.00021547,2]
[378167229,1754759439559,-460.0,0.00021547,2]
[378167230,1754759439573,-460.0,0.00021547,2]
[378167231,1754759439587,-460.0,0.00021547,2]
[378167232,1754759439597,-460.0,0.00021547,2]
[378167233,1754759439606,-460.0,0.00021547,2]
[378167234,1754759439616,-460.0,0.00021547,2]
[378167235,1754759439627,-460.0,0.00021547,2]
[378167236,1754759439636,-460.0,0.00021547,2]
[378167237,1754759439646,-460.0,0.00021547,2]
[378167238,1754759439657,-460.0,0.00021547,2]
[378167239,1754759439666,-460.0,0.00021547,2]
[378167240,1754759439676,-460.0,0.00021547,2]
[378167241,1754759439686,-460.0,0.00021547,2]
[378167242,1754759439695,-460.0,0.00021547,2]
[378167243,1754759439705,-460.0,0.00021547,2]
[378167244,1754759439715,-460.0,0.00021547,2]
[378167245,1754759439727,-460.0,0.00021547,2]
[378167246,1754759439737,-460.0,0.00021547,2]
[378167247,1754759439747,-460.0,0.00021547,2]
[378167248,1754759439756,-460.0,0.00021547,2]
[378167249,1754759439766,-405.0774063,0.00021547,2]
[378167250,1754759439775,-460.0,0.00021547,2]
[378167251,1754759439784,-462.35939164,0.00021547,2]
[378167252,1754759439793,-460.0,0.00021547,2]
[378167253,1754759439803,-460.0,0.00021547,2]
[378167254,1754759439812,-460.0,0.00021547,2]
[378167255,1754759439823,-460.0,0.00021547,2]
[378167256,1754759439833,-460.0,0.00021547,2]
[378167257,1754759439843,-460.0,0.00021547,2]
[378167258,1754759439853,-460.0,0.00021547,2]
[378167259,1754759439862,-460.0,0.00021547,2]
[378167260,1754759439872,-461.71399137,0.00021547,2]
[378167261,1754759439882,-460.0,0.00021547,2]
[378167262,1754759439891,-460.0,0.00021547,2]
[378167263,1754759439901,-460.0,0.00021547,2]
[378167264,1754759439911,-417.39336558,0.00021547,2]
[378167265,1754759439921,-460.0,0.00021547,2]
[378167266,1754759439930,-523.84,0.00021547,2]
[378167267,1754759439941,-460.0,0.00021547,2]
[378167268,1754759439950,-500.0,0.00021547,2]
[378167269,1754759439960,-500.0,0.00021547,2]
[378167270,1754759439969,-460.0,0.00021547,2]
[378167271,1754759439979,-460.0,0.00021547,2]
[378167272,1754759439988,-460.0,0.00021547,2]
[378167273,1754759439997,-460.0,0.00021547,2]
[378167274,1754759440007,-460.0,0.00021547,2]
[378167275,1754759440020,-460.0,0.00021547,2]
[378167276,1754759440030,-460.0,0.00021547,2]
[378167277,1754759440039,-460.0,0.00021547,2]
[378167278,1754759440048,-460.0,0.00021547,2]
[378167279,1754759440058,-460.0,0.00021547,2]
[378167280,1754759440067,-462.07707354,0.00021547,2]
[378167282,1754759440077,-460.0,0.00021547,2]
[378167283,1754759440087,-460.0,0.00021547,2]
[378167284,1754759440096,-460.0,0.00021547,2]
[378167285,1754759440105,-460.0,0.00021547,2]
[378167286,1754759440115,-460.0,0.00021547,2]
[378167287,1754759440124,-460.0,0.00021547,2]
[378167288,1754759440133,-1355.07,0.00021547,2]
[378167289,1754759440142,-240.9004089,0.00021547,2]
[378167290,1754759440151,-460.0,0.00021547,2]
[378167291,1754759440161,-460.0,0.00021547,2]
[378167292,1754759440170,-460.0,0.00021547,2]
[378167293,1754759440180,-460.0,0.00021547,2]
[378167294,1754759440190,-460.0,0.00021547,2]
[378167295,1754759440200,-460.0,0.00021547,2]
[378167296,1754759440209,-460.0,0.00021547,2]
[378167297,1754759440218,-465.74708563,0.00021547,2]
[378167298,1754759440228,-460.0,0.00021547,2]
[378167299,1754759440237,-460.0,0.00021547,2]
[378167300,1754759440247,-470.91817191,0.00021547,2]
[378167301,1754759440256,-460.0,0.00021547,2]
[378167302,1754759440265,-460.0,0.00021547,2]
[378167303,1754759440275,-243.66963337,0.00021547,2]
[378167304,1754759440284,-460.0,0.00021547,2]
[378167305,1754759440293,-460.0,0.00021547,2]
[378167306,1754759440302,-460.0,0.00021547,2]
[378167307,1754759440311,-460.0,0.00021547,2]
[378167308,1754759440320,-460.0,0.00021547,2]
[378167309,1754759440329,-460.0,0.00021547,2]
[378167310,1754759440338,-460.0,0.00021547,2]
[378167311,1754759440347,-460.0,0.00021547,2]
[378167312,1754759440357,-460.0,0.00021547,2]
[378167313,1754759440366,-460.0,0.00021547,2]
[378167314,1754759440376,-475.36224357,0.00021547,2]
[378167315,1754759440385,-460.0,0.00021547,2]
[378167316,1754759440394,-461.82841496,0.00021547,2]
[378167317,1754759440403,-460.0,0.00021547,2]
[378167318,1754759440412,-460.0,0.00021547,2]
[378167319,1754759440421,-460.0,0.00021547,2]
[378167320,1754759440430,-460.0,0.00021547,2]
[378167321,1754759440440,-460.0,0.00021547,2]
[378167322,1754759440449,-460.0,0.00021547,2]
[378167323,1754759440458,-460.0,0.00021547,2]
[378167324,1754759440467,-460.0,0.00021547,2]
[378167325,1754759440476,-460.0,0.00021547,2]
[378167326,1754759440485,-460.0,0.00021547,2]
[378167327,1754759440494,-545.23,0.00021547,2]
[378167328,1754759440503,-515.91,0.00021547,2]
[378167329,1754759440513,-465.77644384,0.00021547,2]
[378167330,1754759440521,-460.0,0.00021547,2]
[378167331,1754759440531,-460.0,0.00021547,2]
[378167332,1754759440540,-460.0,0.00021547,2]
[378167333,1754759440549,-460.0,0.00021547,2]
[378167334,1754759440558,-66.32084498,0.00021547,2]
[378167335,1754759440590,-393.67915502,0.00021547,2]
[378167336,1754759440599,-460.0,0.00021547,2]
[378167337,1754759440608,-460.0,0.00021547,2]
[378167338,1754759440618,-460.0,0.00021547,2]
[378167339,1754759440628,-460.0,0.00021547,2]
[378167340,1754759440638,-460.0,0.00021547,2]
[378167341,1754759440647,-460.0,0.00021547,2]
[378167342,1754759440657,-455.73160461,0.00021547,2]
[378167343,1754759440665,-460.0,0.00021547,2]
[378167344,1754759440675,-460.0,0.00021547,2]
[378167345,1754759440684,-460.0,0.00021547,2]
[378167346,1754759440695,-460.0,0.00021547,2]
[378167347,1754759440704,-460.0,0.00021547,2]
[378167348,1754759440713,-460.0,0.00021547,2]
[378167349,1754759440722,-460.0,0.00021547,2]
[378167351,1754759440732,-460.0,0.00021547,2]
[378167353,1754759440741,-460.0,0.00021547,2]
[378167355,1754759440750,-460.0,0.00021547,2]
[378167356,1754759440759,-460.0,0.00021547,2]
[378167358,1754759440769,-460.0,0.00021547,2]
[378167360,1754759440778,-460.0,0.00021547,2]
[378167362,1754759440788,-460.0,0.00021547,2]
[378167364,1754759440797,-460.0,0.00021547,2]
[378167366,1754759440806,-491.15,0.00021547,2]
[378167368,1754759440815,-464.32823463,0.00021547,2]
[378167370,1754759440824,-463.18359865,0.00021547,2]
[378167372,1754759440833,-460.0,0.00021547,2]
[378167374,1754759440842,-460.0,0.00021547,2]
[378167376,1754759440852,-460.0,0.00021547,2]
[378167378,1754759440861,-460.0,0.00021548,2]
[378167380,1754759440870,-460.0,0.00021548,2]
[378167382,1754759440879,-460.0,0.00021548,2]
[378167384,1754759440889,-460.0,0.00021548,2]
[378167386,1754759440899,-460.0,0.00021548,2]
[378167388,1754759440908,-460.0,0.00021548,2]
[378167390,1754759440917,-460.0,0.00021548,2]
[378167392,1754759440927,-460.0,0.00021548,2]
[378167394,1754759440937,-460.0,0.00021548,2]
[378167396,1754759440946,-460.0,0.00021548,2]
[378167398,1754759440956,-460.0,0.00021548,2]
[378167399,1754759440965,-460.0,0.00021548,2]
[378167400,1754759440974,-460.0,0.00021548,2]
[378167402,1754759440984,-460.0,0.00021548,2]
[378167404,1754759440993,-460.0,0.00021548,2]
[378167406,1754759441002,-460.0,0.00021548,2]
[378167408,1754759441011,-460.0,0.00021548,2]
[378167410,1754759441021,-460.0,0.00021548,2]
[378167412,1754759441030,-460.0,0.00021548,2]
[378167414,1754759441039,-460.0,0.00021548,2]
[378167416,1754759441049,-460.0,0.00021548,2]
[378167418,1754759441058,-460.0,0.00021548,2]
[378167420,1754759441068,-460.0,0.00021548,2]
[378167422,1754759441077,-609.82332364,0.00021548,2]
[378167424,1754759441087,-460.0,0.00021548,2]
[378167425,1754759441096,-460.0,0.00021548,2]
[378167427,1754759441106,-460.0,0.00021548,2]
[378167429,1754759441116,-465.03,0.00021548,2]
[378167431,1754759441125,-460.0,0.00021548,2]
[378167433,1754759441134,-460.0,0.00021548,2]
[378167435,1754759441144,-460.0,0.00021548,2]
[378167437,1754759441153,-460.0,0.00021548,2]
[378167439,1754759441162,-193.53692348,0.00021548,2]
[378167441,1754759441172,-460.0,0.00021548,2]
[378167443,1754759441181,-736.53,0.00021548,2]
[378167444,1754759441191,-500.0,0.00021548,2]
[378167445,1754759441201,-460.0,0.00021548,2]
[378167447,1754759441210,-460.0,0.00021548,2]
[378167449,1754759441219,-491.9,0.00021548,2]
[378167450,1754759441228,-460.0,0.00021548,2]
[378167452,1754759441237,-460.0,0.00021548,2]
[378167454,1754759441246,-460.0,0.00021548,2]
[378167457,1754759441256,-460.0,0.00021548,2]
[378167458,1754759441265,-460.0,0.00021548,2]
[378167461,1754759441274,-500.0,0.00021548,2]
[378167463,1754759441284,-500.0,0.00021548,2]
[378167464,1754759441293,-988.51,0.00021548,2]
[378167466,1754759441302,-3001.62,0.00021548,2]
[378167467,1754759441311,-460.0,0.00021548,2]
[378167468,1754759441320,-1359.96,0.00021548,2]
[378167469,1754759441330,-460.0,0.00021548,2]
[378167470,1754759441339,-1046.21,0.00021548,2]
[378167471,1754759441349,-460.0,0.00021548,2]
[378167472,1754759441358,-773.32,0.00021548,2]
[378167473,1754759441367,-460.0,0.00021548,2]
[378167474,1754759441377,-460.0,0.00021548,2]
[378167475,1754759441386,-460.0,0.00021548,2]
[378167476,1754759441395,-460.0,0.00021548,2]
[378167477,1754759441404,-460.0,0.00021548,2]
[378167478,1754759441415,-460.0,0.00021548,2]
[378167479,1754759441425,-460.0,0.00021548,2]
[378167480,1754759441434,-1240.26,0.00021548,2]
[378167481,1754759441444,-957.18,0.00021548,2]
[378167482,1754759441453,-460.0,0.00021548,2]
[378167483,1754759441462,-460.0,0.00021548,2]
[378167484,1754759441472,-460.0,0.00021548,2]
[378167485,1754759441481,-460.0,0.00021548,2]
[378167486,1754759441491,-473.0,0.00021548,2]
[378167487,1754759441501,-460.0,0.00021548,2]
[378167488,1754759441511,-460.0,0.00021548,2]
[378167489,1754759441521,-892.31,0.00021548,2]
[378167490,1754759441531,-460.0,0.00021549,2]
[378167491,1754759441541,-460.0,0.00021549,2]
[378167492,1754759441550,-460.0,0.00021549,2]
[378167493,1754759441560,-460.0,0.00021549,2]
[378167494,1754759441570,-463.93393613,0.00021549,2]
[378167495,1754759441581,-460.0,0.00021549,2]
[378167496,1754759441592,-460.0,0.00021549,2]
[378167497,1754759441602,-460.0,0.00021549,2]
[378167498,1754759441611,-460.0,0.00021549,2]
[378167499,1754759441621,-460.0,0.00021549,2]
[378167500,1754759441632,-460.0,0.00021549,2]
[378167501,1754759441642,-460.0,0.00021549,2]
[378167502,1754759441660,-460.0,0.00021549,2]
[378167503,1754759441670,-463.12977785,0.00021549,2]
[378167504,1754759441679,-460.0,0.00021549,2]
[378167505,1754759441690,-460.0,0.00021549,2]
[378167506,1754759441699,-460.0,0.00021549,2]
[378167507,1754759441708,-460.0,0.00021549,2]
[378167508,1754759441717,-460.0,0.00021549,2]
[378167509,1754759441727,-471.12779907,0.00021549,2]
[378167510,1754759441736,-460.0,0.00021549,2]
[378167511,1754759441746,-460.0,0.00021549,2]
[378167512,1754759441755,-471.8248193,0.00021549,2]
[378167513,1754759441765,-460.0,0.00021549,2]